[Event "9th Holuj-Radzikowska Rapid 19"]
[Site "Wroclaw"]
[Date "2019.12.07"]
[Round "5"]
[White "Antolak, Julia"]
[Black "Bulmaga, Irina"]
[Result "1/2-1/2"]
[ECO "C92"]
[WhiteElo "2249"]
[BlackElo "2434"]
[Annotator "NA"]
[PlyCount "133"]
[EventDate "2019.12.06"]
[EventType "team-tourn"]
[EventCountry "POL"]
[SourceTitle "playchess.com"]
[Source "ChessBase"]
[SourceQuality "1"]
[WhiteTeam "Team Poland"]
[BlackTeam "Team World"]
[TimeControl "900+10"]

1. e4 {[%emt 0:00:00]} e5 {[%emt 0:00:00]} 2. Nf3 {[%emt 0:00:00]} Nc6 {[%emt 0:00:00]} 3. Bb5 {[%emt 0:00:00]} a6 {[%emt 0:00:00]} 4. Ba4 {[%emt 0:00:00]} Nf6 {[%emt 0:00:00]} 5. O-O {[%emt 0:00:00]} b5 {[%emt 0:00:00]} 6. Bb3 {[%emt 0:00:01]} Be7 {[%emt 0:00:15]} 7. Re1 {[%emt 0:00:02]} O-O {[%emt 0:00:04]} 8. c3 {[%emt 0:00:01]} d6 {[%emt 0:00:02]} 9. h3 {[%emt 0:00:01]} Bb7 {[%emt 0:00:02]} 10. d4 {[%emt 0:00:05]} Nd7 {[%emt 0:00:01]} 11. Nbd2 {[%emt 0:00:20]} exd4 {[%emt 0:00:03]} 12. cxd4 {[%emt 0:00:01]} Bf6 {[%emt 0:00:01]} 13. Nf1 {[%emt 0:00:03]} Na5 {[%emt 0:00:02]} 14. Bc2 {[%emt 0:00:02]} Re8 {[%emt 0:00:04]} 15. Ng3 {[%emt 0:00:51]} g6 {[%emt 0:00:01]} 16. b3 {[%emt 0:00:28]} c5 {[%emt 0:00:04]} 17. Bb2 {[%emt 0:00:06]} Nc6 {[%emt 0:00:08]} 18. Rb1 {[%emt 0:00:29]} cxd4 {[%emt 0:01:03]} 19. Nxd4 {[%emt 0:00:06]} Nxd4 {[%emt 0:00:26]} 20. Bxd4 {[%emt 0:00:01]} Rc8 {[%emt 0:00:04]} 21. Rc1 {[%emt 0:01:38]} Bxd4 {[%emt 0:02:25]} 22. Qxd4 {[%emt 0:00:03]} Qf6 {[%emt 0:00:23]} 23. Qxf6 {[%emt 0:01:58]} Nxf6 {[%emt 0:00:01]} 24. Bd3 {[%emt 0:00:51]} Rxc1 {[%emt 0:00:42]} 25. Rxc1 {[%emt 0:00:01]} Nxe4 {[%emt 0:00:18]} 26. Nxe4 {[%emt 0:00:02]} Bxe4 {[%emt 0:00:02]} 27. Bxe4 {[%emt 0:00:02]} Rxe4 {[%emt 0:00:01]} 28. Rc6 {[%emt 0:00:02]} Re1+ {[%emt 0:00:20]} 29. Kh2 {[%emt 0:00:01]} a5 {[%emt 0:00:46]} 30. Ra6 {[%emt 0:07:00]} Re2 {[%emt 0:00:03]} 31. Rxa5 {[%emt 0:00:02]} Rxf2 {[%emt 0:00:04]} 32. a3 {[%emt 0:01:09]} Ra2 {[%emt 0:01:01]} 33. Rxb5 {[%emt 0:00:06]} Rxa3 {[%emt 0:00:04]} 34. Rb6 {[%emt 0:00:03]} Kf8 {[%emt 0:00:12]} 35. Rxd6 {[%emt 0:00:02]} Rxb3 {[%emt 0:00:01]} 36. Rd2 {[%emt 0:00:02]} h5 {[%emt 0:00:04]} 37. h4 {[%emt 0:00:28]} Ke7 {[%emt 0:00:06]} 38. Rf2 {[%emt 0:00:10]} Re3 {[%emt 0:00:06]} 39. g3 {[%emt 0:00:08]} Ke6 {[%emt 0:00:02]} 40. Kg2 {[%emt 0:00:03]} f6 {[%emt 0:00:06]} 41. Ra2 {[%emt 0:00:04]} Rd3 {[%emt 0:00:10]} 42. Re2+ {[%emt 0:00:07]} Kf5 {[%emt 0:00:08]} 43. Rf2+ {[%emt 0:00:12]} Ke5 {[%emt 0:00:03]} 44. Re2+ {[%emt 0:00:13]} Kd5 {[%emt 0:00:07]} 45. Rf2 {[%emt 0:00:03]} f5 {[%emt 0:00:07]} 46. Ra2 {[%emt 0:00:17]} Ke4 {[%emt 0:00:33]} 47. Ra6 {[%emt 0:01:13]} f4 {[%emt 0:04:00]} 48. gxf4 {[%emt 0:01:12]} Kf5 {[%emt 0:00:12]} 49. Rb6 {[%emt 0:00:24]} Re3 {[%emt 0:00:22]} 50. Ra6 {[%emt 0:01:04]} Rb3 {[%emt 0:01:56]} 51. Rc6 {[%emt 0:00:07]} Rb4 {[%emt 0:00:03]} 52. Kg3 {[%emt 0:00:12]} Rb3+ {[%emt 0:00:42]} 53. Kg2 {[%emt 0:00:01]} Re3 {[%emt 0:00:04]} 54. Ra6 {[%emt 0:00:05]} Rc3 {[%emt 0:02:38]} 55. Rb6 {[%emt 0:00:05]} Rc2+ {[%emt 0:01:26]} 56. Kg3 {[%emt 0:00:06]} Rc1 {[%emt 0:00:03]} 57. Kg2 {[%emt 0:00:38]} Re1 {[%emt 0:00:16]} 58. Ra6 {[%emt 0:00:18]} Re6 {[%emt 0:00:01]} 59. Rxe6 {[%emt 0:00:31]} Kxe6 {[%emt 0:00:02]} 60. Kf2 {[%emt 0:00:00]} Kd6 {[%emt 0:00:04]} 61. Ke3 {[%emt 0:00:35]} Ke6 {[%emt 0:00:13]} 62. Ke4 {[%emt 0:00:04]} Kf6 {[%emt 0:00:01]} 63. Ke3 {[%emt 0:00:01]} Ke7 {[%emt 0:00:05]} 64. Kd3 {[%emt 0:00:21]} Kd7 {[%emt 0:00:14]} 65. Ke3 {[%emt 0:00:05]} Kd6 {[%emt 0:00:06]} 66. Kd4 {[%emt 0:00:04]} Ke6 {[%emt 0:00:01]} 67. Ke4 {[%emt 0:00:01] Ke5+} 1/2-1/2

[Event "9th Holuj-Radzikowska Rapid 19"]
[Site "Wroclaw"]
[Date "2019.12.07"]
[Round "6"]
[White "Bulmaga, Irina"]
[Black "Sliwicka, Alicja"]
[Result "0-1"]
[ECO "B56"]
[WhiteElo "2434"]
[BlackElo "2264"]
[Annotator "NA"]
[PlyCount "64"]
[EventDate "2019.12.06"]
[EventType "team-tourn"]
[EventCountry "POL"]
[SourceTitle "playchess.com"]
[Source "ChessBase"]
[SourceQuality "1"]
[WhiteTeam "Team World"]
[BlackTeam "Team Poland"]
[TimeControl "900+10"]

1. e4 {[%emt 0:00:00]} c5 {[%emt 0:00:00]} 2. Nf3 {[%emt 0:00:00]} d6 {[%emt 0:00:00]} 3. d4 {[%emt 0:00:00]} Nf6 {[%emt 0:00:00]} 4. Nc3 {[%emt 0:00:00]} cxd4 {[%emt 0:00:00]} 5. Nxd4 {[%emt 0:00:00]} Bd7 {[%emt 0:00:00]} 6. Bg5 {[%emt 0:00:04]} e6 {[%emt 0:00:01]} 7. Bxf6 {[%emt 0:00:25]} Qxf6 {[%emt 0:00:18]} 8. Ndb5 {[%emt 0:00:10]} Bxb5 {[%emt 0:00:32]} 9. Bxb5+ {[%emt 0:00:40]} Nc6 {[%emt 0:00:19]} 10. O-O {[%emt 0:00:05]} Be7 {[%emt 0:00:25]} 11. f4 {[%emt 0:00:11]} O-O {[%emt 0:00:08]} 12. Kh1 {[%emt 0:01:51]} a6 {[%emt 0:00:22]} 13. Bd3 {[%emt 0:00:10]} Rac8 {[%emt 0:00:49]} 14. a3 {[%emt 0:00:32]} Qh6 {[%emt 0:00:41]} 15. Qf3 {[%emt 0:00:33]} Bf6 {[%emt 0:00:17]} 16. Nd1 {[%emt 0:01:16]} Nd4 {[%emt 0:00:01]} 17. Qf2 {[%emt 0:00:02]} e5 {[%emt 0:01:44]} 18. Ne3 {[%emt 0:01:37]} Qxf4 {[%emt 0:00:49]} 19. Qg1 {[%emt 0:00:34]} Qh4 {[%emt 0:00:34]} 20. c3 {[%emt 0:00:14]} Ne6 {[%emt 0:01:17]} 21. g3 {[%emt 0:00:43]} Qg5 {[%emt 0:00:41]} 22. Rf5 {[%emt 0:00:32]} Qg6 {[%emt 0:00:30]} 23. h4 {[%emt 0:00:26]} Bd8 {[%emt 0:01:19]} 24. Rd1 {[%emt 0:01:03]} Nc5 {[%emt 0:01:22]} 25. h5 {[%emt 0:00:47]} Qh6 {[%emt 0:00:31]} 26. Bc4 {[%emt 0:01:00]} Bg5 {[%emt 0:00:53]} 27. Nd5 {[%emt 0:04:33]} Qxh5+ {[%emt 0:01:34]} 28. Kg2 {[%emt 0:00:01]} Qg4 {[%emt 0:00:22]} 29. Re1 {[%emt 0:01:49]} Nxe4 {[%emt 0:00:44]} 30. Rxg5 {[%emt 0:00:17]} Nxg5 {[%emt 0:00:31]} 31. Ne7+ {[%emt 0:00:01]} Kh8 {[%emt 0:00:01]} 32. Bd5 {[%emt 0:00:27]} Rce8 {[%emt 0:00:18]} 0-1

[Event "9th Holuj-Radzikowska Rapid 19"]
[Site "Wroclaw"]
[Date "2019.12.07"]
[Round "6"]
[White "Houska, Jovanka"]
[Black "Socko, Monika"]
[Result "0-1"]
[ECO "E17"]
[WhiteElo "2412"]
[BlackElo "2407"]
[Annotator "NA"]
[PlyCount "92"]
[EventDate "2019.12.06"]
[EventType "team-tourn"]
[EventCountry "POL"]
[SourceTitle "playchess.com"]
[Source "ChessBase"]
[SourceQuality "1"]
[WhiteTeam "Team World"]
[BlackTeam "Team Poland"]
[TimeControl "900+10"]

1. d4 {[%emt 0:00:00]} Nf6 {[%emt 0:00:00]} 2. Nf3 {[%emt 0:00:00]} e6 {[%emt 0:00:00]} 3. c4 {[%emt 0:00:00]} b6 {[%emt 0:00:00]} 4. g3 {[%emt 0:00:03]} Bb7 {[%emt 0:00:02]} 5. Bg2 {[%emt 0:00:02]} Be7 {[%emt 0:00:02]} 6. O-O {[%emt 0:00:02]} O-O {[%emt 0:00:02]} 7. Re1 {[%emt 0:00:12]} a5 {[%emt 0:00:02]} 8. Nc3 {[%emt 0:00:06]} Ne4 {[%emt 0:00:03]} 9. Bd2 {[%emt 0:00:44]} Na6 {[%emt 0:01:12]} 10. a3 {[%emt 0:00:37]} f5 {[%emt 0:00:25]} 11. Qc2 {[%emt 0:00:30]} Qc8 {[%emt 0:00:47]} 12. Rad1 {[%emt 0:02:31]} Bf6 {[%emt 0:00:41]} 13. Bf4 {[%emt 0:01:12]} d6 {[%emt 0:01:18]} 14. Nxe4 {[%emt 0:00:23]} Bxe4 {[%emt 0:00:22]} 15. Qc1 {[%emt 0:01:02]} Qb7 {[%emt 0:00:15]} 16. Bg5 {[%emt 0:00:14]} Rae8 {[%emt 0:00:25]} 17. Bf1 {[%emt 0:01:20]} Nb8 {[%emt 0:02:27]} 18. Bg2 {[%emt 0:03:11]} Nd7 {[%emt 0:00:08]} 19. b4 {[%emt 0:00:09]} axb4 {[%emt 0:00:29]} 20. axb4 {[%emt 0:00:01]} Ra8 {[%emt 0:00:14]} 21. Bxf6 {[%emt 0:00:05]} Nxf6 {[%emt 0:00:01]} 22. Qb2 {[%emt 0:00:20]} Qc6 {[%emt 0:00:57]} 23. b5 {[%emt 0:02:56]} Qxc4 {[%emt 0:02:08]} 24. Nd2 {[%emt 0:00:01]} Qa2 {[%emt 0:00:22]} 25. Qxa2 {[%emt 0:01:16]} Rxa2 {[%emt 0:00:01]} 26. Nxe4 {[%emt 0:00:02]} fxe4 {[%emt 0:00:52]} 27. Rc1 {[%emt 0:00:01]} Rf7 {[%emt 0:00:30]} 28. Bh3 {[%emt 0:00:10]} Re7 {[%emt 0:00:46]} 29. Rxc7 {[%emt 0:00:19]} Rxc7 {[%emt 0:00:02]} 30. Bxe6+ {[%emt 0:00:01]} Kf8 {[%emt 0:00:01]} 31. Bxa2 {[%emt 0:00:01]} Rc2 {[%emt 0:00:01]} 32. Ra1 {[%emt 0:01:12]} d5 {[%emt 0:00:51]} 33. g4 {[%emt 0:01:06]} g5 {[%emt 0:00:22]} 34. h4 {[%emt 0:00:03]} h6 {[%emt 0:00:04]} 35. hxg5 {[%emt 0:00:02]} hxg5 {[%emt 0:00:01]} 36. f3 {[%emt 0:00:04]} Rxe2 {[%emt 0:00:27]} 37. fxe4 {[%emt 0:00:08]} Rxe4 {[%emt 0:00:01]} 38. Rc1 {[%emt 0:00:10]} Rxg4+ {[%emt 0:00:09]} 39. Kf1 {[%emt 0:00:48]} Rxd4 {[%emt 0:00:01]} 40. Rc6 {[%emt 0:00:02]} Ne4 {[%emt 0:00:02]} 41. Bb3 {[%emt 0:00:10]} Nd2+ {[%emt 0:00:02]} 42. Ke2 {[%emt 0:00:03]} Nxb3 {[%emt 0:00:01]} 43. Rxb6 {[%emt 0:00:01]} Ke7 {[%emt 0:00:12]} 44. Rg6 {[%emt 0:00:19]} g4 {[%emt 0:00:11]} 45. b6 {[%emt 0:00:06]} Nc5 {[%emt 0:00:15]} 46. Rc6 {[%emt 0:00:14]} Ne6 {[%emt 0:00:15]} 0-1

[Event "9th Holuj-Radzikowska Rapid 19"]
[Site "Wroclaw"]
[Date "2019.12.07"]
[Round "6"]
[White "Cyfka, Karina"]
[Black "Bodnaruk, Anastasia"]
[Result "1-0"]
[ECO "E81"]
[WhiteElo "2410"]
[BlackElo "2413"]
[Annotator "NA"]
[PlyCount "157"]
[EventDate "2019.12.06"]
[EventType "team-tourn"]
[EventCountry "POL"]
[SourceTitle "playchess.com"]
[Source "ChessBase"]
[SourceQuality "1"]
[WhiteTeam "Team Poland"]
[BlackTeam "Team World"]
[TimeControl "900+10"]

1. d4 Nf6 2. c4 g6 3. Nc3 Bg7 4. e4 d6 5. f3 O-O 6. Nge2 c5 7. Be3 Nc6 8. d5 Na5 9. Nc1 e6 10. Be2 exd5 11. cxd5 a6 12. O-O b5 13. Qd2 Re8 14. Rb1 Bd7 15. b3 Rc8 16. Nd1 c4 17. Bd4 Qc7 18. b4 c3 19. Nxc3 Nc4 20. Bxc4 Qxc4 21. N1e2 Qc7 22. Rfc1 Qb7 23. Nd1 Rxc1 24. Rxc1 Rc8 25. Rxc8+ Qxc8 26. Ne3 h5 27. Qc3 Qd8 28. e5 dxe5 29. Bxe5 Qb6 30. Bd4 Qd8 31. Be5 Qb6 32. Kf1 h4 33. Qd4 Qxd4 34. Bxd4 Ne8 35. Bc5 f5 36. Nf4 Kf7 37. Nd3 g5 38. g3 hxg3 39. hxg3 Nc7 40. Bb6 Ne8 41. Bc5 Nc7 42. f4 gxf4 43. gxf4 Ke8 44. d6 Ne6 45. Nxf5 Bc3 46. Ne3 a5 47. Nd5 axb4 48. Bxb4 Bxb4 49. N3xb4 Nd4 50. Nd3 Bc6 51. Nf6+ Kf7 52. d7 Ke7 53. Ne5 b4 54. Kf2 b3 55. axb3 Bxd7 56. Nfxd7 Nxb3 57. Ke3 Ke6 58. Nb6 Kf5 59. Nd5 Nc5 60. Ne7+ Ke6 61. N7c6 Kf6 62. Nd4 Nb7 63. Ng4+ Kf7 64. Ke4 Nd6+ 65. Kd5 Nc8 66. Ne5+ Kf6 67. Nd7+ Ke7 68. Nc5 Kf6 69. Ne4+ Ke7 70. Nc6+ Kd7 71. Nc5+ Ke8 72. Ke6 Nb6 73. Ne4 Kf8 74. f5 Na8 75. Kd6 Nb6 76. Ne5 Nc8+ 77. Ke6 Na7 78. Nd6 Kg8 79. f6 1-0

[Event "9th Holuj-Radzikowska Rapid 19"]
[Site "Wroclaw"]
[Date "2019.12.07"]
[Round "6"]
[White "Badelka, Olga"]
[Black "Zawadzka, Jolanta"]
[Result "1-0"]
[ECO "A20"]
[WhiteElo "2399"]
[BlackElo "2400"]
[Annotator "NA"]
[PlyCount "129"]
[EventDate "2019.12.06"]
[EventType "team-tourn"]
[EventCountry "POL"]
[SourceTitle "playchess.com"]
[Source "ChessBase"]
[SourceQuality "1"]
[WhiteTeam "Team World"]
[BlackTeam "Team Poland"]
[TimeControl "900+10"]

1. c4 e5 2. g3 c6 3. Nf3 e4 4. Nd4 Qb6 5. e3 Nf6 6. Nc3 d5 7. cxd5 cxd5 8. d3 Bb4 9. Bg2 Bg4 10. Qa4+ Nc6 11. Nxc6 bxc6 12. dxe4 Nxe4 13. O-O O-O 14. Nxe4 dxe4 15. a3 Bd6 16. Bxe4 Bh3 17. Rd1 Rad8 18. Bd2 Qxb2 19. Ba5 Rc8 20. Qc4 Qf6 21. Bc3 Be5 22. Bxe5 Qxe5 23. Rac1 Be6 24. Qd4 Qa5 25. Qc5 Qa6 26. Rd4 g6 27. h4 Rc7 28. h5 Qb6 29. Qe5 c5 30. Rd6 Qb3 31. hxg6 hxg6 32. Bxg6 fxg6 33. Rxe6 Rg7 34. Re8 Rxe8 35. Qxe8+ Kh7 36. Rxc5 Rf7 37. Rc1 Qa2 38. Rf1 Kg7 39. a4 Qd5 40. Qb5 Qe6 41. Rb1 Qe4 42. Qb4 Qf5 43. Qd4+ Kh7 44. e4 Qc8 45. e5 Qe6 46. Rd1 Re7 47. Qd6 Qf7 48. Re1 Re6 49. Qd4 Qe7 50. Qh4+ Qxh4 51. gxh4 Kh6 52. Kg2 Kh5 53. Kg3 g5 54. hxg5 Kxg5 55. f4+ Kf5 56. Rh1 Ke4 57. Rh5 Rg6+ 58. Rg5 Rxg5+ 59. fxg5 Kxe5 60. Kg4 Ke6 61. Kh5 Kf7 62. Kh6 Kg8 63. a5 Kh8 64. a6 Kg8 65. Kg6 1-0

[Event "9th Holuj-Radzikowska Rapid 19"]
[Site "Wroclaw"]
[Date "2019.12.07"]
[Round "6"]
[White "Majdan, Joanna"]
[Black "Zatonskih, Anna"]
[Result "1-0"]
[ECO "C02"]
[WhiteElo "2336"]
[BlackElo "2420"]
[Annotator "NA"]
[PlyCount "93"]
[EventDate "2019.12.06"]
[EventType "team-tourn"]
[EventCountry "POL"]
[SourceTitle "playchess.com"]
[Source "ChessBase"]
[SourceQuality "1"]
[WhiteTeam "Team Poland"]
[BlackTeam "Team World"]
[TimeControl "900+10"]

1. e4 e6 2. d4 d5 3. e5 c5 4. c3 Qb6 5. Nf3 Bd7 6. Na3 Nc6 7. Nc2 cxd4 8. cxd4 Nb4 9. Ne3 Bb5 10. g3 Ne7 11. a3 Bxf1 12. Kxf1 Nbc6 13. Kg2 Na5 14. Qa4+ Nac6 15. Bd2 Qa6 16. Qxa6 bxa6 17. Rhc1 h6 18. h4 Kd7 19. b4 Nc8 20. Nd1 Nb6 21. Nb2 Be7 22. Bc3 Rhb8 23. Nd2 Kd8 24. Nb3 Rc8 25. Rc2 Rab8 26. Rac1 Kd7 27. f4 g6 28. g4 h5 29. Kg3 hxg4 30. Kxg4 Rh8 31. Be1 Rbc8 32. Bf2 Rh5 33. Nd3 Nc4 34. Nbc5+ Bxc5 35. Nxc5+ Kd8 36. Nxa6 Ne7 37. a4 Nf5 38. Rc3 Ke7 39. b5 Rch8 40. Rxc4 dxc4 41. Rxc4 Kd8 42. Rc7 Nxh4 43. Rxa7 Nf5 44. b6 Rh3 45. Ra8+ Kd7 46. Rxh8 Rxh8 47. b7 1-0

[Event "9th Holuj-Radzikowska Rapid 19"]
[Site "Wroclaw"]
[Date "2019.12.07"]
[Round "6"]
[White "Antolak, Julia"]
[Black "Arabidze, Meri"]
[Result "1-0"]
[ECO "B85"]
[WhiteElo "2249"]
[BlackElo "2435"]
[Annotator "NA"]
[PlyCount "154"]
[EventDate "2019.12.06"]
[EventType "team-tourn"]
[EventCountry "POL"]
[SourceTitle "playchess.com"]
[Source "ChessBase"]
[SourceQuality "1"]
[WhiteTeam "Team Poland"]
[BlackTeam "Team World"]
[TimeControl "900+10"]

1. e4 {[%emt 0:00:00]} c5 {[%emt 0:00:00]} 2. Nf3 {[%emt 0:00:00]} e6 {[%emt 0:00:00]} 3. d4 {[%emt 0:00:00]} cxd4 {[%emt 0:00:00]} 4. Nxd4 {[%emt 0:00:00]} Nc6 {[%emt 0:00:00]} 5. Nc3 {[%emt 0:00:01]} Qc7 {[%emt 0:00:00]} 6. Be2 {[%emt 0:00:08]} a6 {[%emt 0:00:00]} 7. O-O {[%emt 0:00:12]} Nf6 {[%emt 0:00:00]} 8. Be3 {[%emt 0:00:06]} Be7 {[%emt 0:00:04]} 9. f4 {[%emt 0:00:11]} d6 {[%emt 0:00:02]} 10. Qe1 {[%emt 0:00:15]} O-O {[%emt 0:00:07]} 11. Kh1 {[%emt 0:00:03]} Nxd4 {[%emt 0:03:04]} 12. Bxd4 {[%emt 0:00:01]} b5 {[%emt 0:00:01]} 13. a3 {[%emt 0:00:02]} Bb7 {[%emt 0:00:09]} 14. Qg3 {[%emt 0:00:04]} g6 {[%emt 0:00:20]} 15. Bd3 {[%emt 0:00:24]} e5 {[%emt 0:01:28]} 16. fxe5 {[%emt 0:00:55]} Nh5 {[%emt 0:00:00]} 17. Qf2 {[%emt 0:00:16]} dxe5 {[%emt 0:00:02]} 18. Be3 {[%emt 0:00:05]} Nf4 {[%emt 0:01:13]} 19. Bxf4 {[%emt 0:00:29]} exf4 {[%emt 0:00:01]} 20. Qxf4 {[%emt 0:00:31]} Bd6 {[%emt 0:00:47]} 21. Qh4 {[%emt 0:00:22]} Be5 {[%emt 0:00:01]} 22. Rae1 {[%emt 0:02:03]} Qd8 {[%emt 0:00:23]} 23. Qh6 {[%emt 0:01:00]} Rc8 {[%emt 0:00:43]} 24. Re3 {[%emt 0:00:54]} Bg7 {[%emt 0:00:16]} 25. Qf4 {[%emt 0:00:12]} Qd4 {[%emt 0:00:29]} 26. Rh3 {[%emt 0:01:01]} Rc5 {[%emt 0:00:25]} 27. Qh4 {[%emt 0:02:07]} Rh5 {[%emt 0:00:23]} 28. Qg3 {[%emt 0:00:01]} Be5 {[%emt 0:03:43]} 29. Qf3 {[%emt 0:00:02]} Rxh3 {[%emt 0:00:13]} 30. Qxh3 {[%emt 0:00:02]} Bc8 {[%emt 0:00:04]} 31. Qf3 {[%emt 0:00:28]} Be6 {[%emt 0:00:01]} 32. Rd1 {[%emt 0:01:16]} Qc5 {[%emt 0:00:25]} 33. Be2 {[%emt 0:00:33]} Bxc3 {[%emt 0:01:42]} 34. Qxc3 {[%emt 0:02:04]} Qxc3 {[%emt 0:00:02]} 35. bxc3 {[%emt 0:00:01]} Rc8 {[%emt 0:00:00]} 36. a4 {[%emt 0:00:32]} bxa4 {[%emt 0:00:45]} 37. Bxa6 {[%emt 0:00:20]} Rxc3 {[%emt 0:00:42]} 38. Bd3 {[%emt 0:00:03]} a3 {[%emt 0:01:55]} 39. Ra1 {[%emt 0:00:03]} Kg7 {[%emt 0:00:08]} 40. Kg1 {[%emt 0:00:01]} Kf6 {[%emt 0:00:20]} 41. Kf2 {[%emt 0:00:01]} Ke5 {[%emt 0:00:02]} 42. Ke3 {[%emt 0:00:27]} a2 {[%emt 0:00:07]} 43. Rd1 {[%emt 0:02:25]} Ra3 {[%emt 0:00:15]} 44. Ra1 {[%emt 0:00:02]} h6 {[%emt 0:00:20]} 45. g3 {[%emt 0:00:45]} h5 {[%emt 0:00:07]} 46. h4 {[%emt 0:00:29]} Rc3 {[%emt 0:00:01]} 47. Rd1 {[%emt 0:00:17]} Bg4 {[%emt 0:00:41]} 48. Ra1 {[%emt 0:00:29]} Ra3 {[%emt 0:00:08]} 49. c3 {[%emt 0:00:21]} Be6 {[%emt 0:01:03]} 50. Kd2 {[%emt 0:00:01]} Ra4 {[%emt 0:00:16]} 51. Kc2 {[%emt 0:00:25]} Ra3 {[%emt 0:00:02]} 52. Kd2 {[%emt 0:00:10]} Ra7 {[%emt 0:00:27]} 53. Kc2 {[%emt 0:00:05]} Ra3 {[%emt 0:00:00]} 54. Kd2 {[%emt 0:00:01]} Bb3 {[%emt 0:00:06]} 55. Kc1 {[%emt 0:00:06]} Be6 {[%emt 0:00:06]} 56. Kd2 {[%emt 0:00:16]} f6 {[%emt 0:00:00]} 57. Kc2 {[%emt 0:00:06]} g5 {[%emt 0:00:00]} 58. hxg5 {[%emt 0:00:07]} fxg5 {[%emt 0:00:00]} 59. Kb2 {[%emt 0:00:10]} Rb3+ {[%emt 0:00:00]} 60. Kc2 {[%emt 0:00:03]} Ra3 {[%emt 0:00:17]} 61. Kb2 {[%emt 0:00:01]} Ra7 {[%emt 0:00:27]} 62. Rh1 {[%emt 0:00:41]} Bf7 {[%emt 0:00:25]} 63. Ka1 {[%emt 0:00:24]} Ra3 {[%emt 0:00:11]} 64. Kb2 {[%emt 0:00:14]} Rb3+ {[%emt 0:00:04]} 65. Kc2 {[%emt 0:00:01]} Rb8 {[%emt 0:00:24]} 66. Ra1 {[%emt 0:00:23]} Ra8 {[%emt 0:00:17]} 67. Kb2 {[%emt 0:00:08]} Rb8+ {[%emt 0:00:00]} 68. Kc2 {[%emt 0:00:01]} h4 {[%emt 0:00:17]} 69. gxh4 {[%emt 0:00:19]} gxh4 {[%emt 0:00:00]} 70. c4 {[%emt 0:00:26]} Ra8 {[%emt 0:00:17]} 71. Bf1 {[%emt 0:00:23]} Bg6 {[%emt 0:00:18]} 72. Kb2 {[%emt 0:00:04]} Bxe4 {[%emt 0:00:07]} 73. Rxa2 {[%emt 0:00:04]} Rb8+ {[%emt 0:00:14]} 74. Kc3 {[%emt 0:00:03]} Rb1 {[%emt 0:00:07]} 75. Bd3 {[%emt 0:00:15]} Bxd3 {[%emt 0:00:13]} 76. Kxd3 {[%emt 0:00:01]} Rh1 {[%emt 0:00:05]} 77. Ke3 {[%emt 0:00:07]} Rh3+ {[%emt 0:00:13] Ke4+ Kd5+} 1-0